[Event "Betsys MČR v online bleskovém šachu 2021"]
[Site "Chess.com"]
[Date "2021.04.17"]
[Round "11"]
[White "clarissamcclellan"]
[Black "Federer302"]
[Result "1-0"]
[WhiteElo "1839"]
[BlackElo "1576"]
[TimeControl "180+1"]
[EndTime "10:49:31 PDT"]
[Termination "Uživatel clarissamcclellan zvítězil na čas"]

1. d4 {[%clk 0:03:00.9]} 1... Nf6 {[%clk 0:02:59.6]} 2. c4 {[%clk 0:03:00.5]}
2... e6 {[%clk 0:02:59.4]} 3. g3 {[%clk 0:03:00.2]} 3... Bb4+ {[%clk 0:02:55.8]}
4. Bd2 {[%clk 0:02:59.5]} 4... Bxd2+ {[%clk 0:02:55.2]} 5. Nxd2 {[%clk
0:02:59.2]} 5... d5 {[%clk 0:02:54.9]} 6. Bg2 {[%clk 0:02:59.3]} 6... O-O {[%clk
0:02:51.7]} 7. Ngf3 {[%clk 0:02:59]} 7... Nbd7 {[%clk 0:02:41]} 8. O-O {[%clk
0:02:58.6]} 8... c5 {[%clk 0:02:32.8]} 9. cxd5 {[%clk 0:02:54.6]} 9... Nxd5
{[%clk 0:02:32.2]} 10. e4 {[%clk 0:02:53.5]} 10... N5f6 {[%clk 0:02:30.5]} 11.
e5 {[%clk 0:02:48.2]} 11... Nd5 {[%clk 0:02:28.4]} 12. Nc4 {[%clk 0:02:46.8]}
12... cxd4 {[%clk 0:02:23.3]} 13. Nxd4 {[%clk 0:02:44.3]} 13... a6 {[%clk
0:02:00.5]} 14. Qe2 {[%clk 0:02:42.4]} 14... Qg5 {[%clk 0:01:45]} 15. Rac1
{[%clk 0:02:31.2]} 15... b5 {[%clk 0:01:38.9]} 16. f4 {[%clk 0:02:30.4]} 16...
Qh6 {[%clk 0:01:13.5]} 17. Nd6 {[%clk 0:02:25.2]} 17... N7b6 {[%clk 0:00:56.6]}
18. Kh1 {[%clk 0:02:19.5]} 18... Bd7 {[%clk 0:00:49.1]} 19. f5 {[%clk
0:02:14.4]} 19... Qe3 {[%clk 0:00:39.4]} 20. fxe6 {[%clk 0:02:00.2]} 20... Bxe6
{[%clk 0:00:30.2]} 21. Rfd1 {[%clk 0:01:39.5]} 21... Qxe2 {[%clk 0:00:29.3]} 22.
Nxe2 {[%clk 0:01:39.1]} 22... Ra7 {[%clk 0:00:20]} 23. Rd3 {[%clk 0:01:31.8]}
23... Rc7 {[%clk 0:00:15.5]} 24. Rxc7 {[%clk 0:01:28.2]} 24... Nxc7 {[%clk
0:00:15.1]} 25. Nd4 {[%clk 0:01:27.4]} 25... Rd8 {[%clk 0:00:13]} 26. Nc6 {[%clk
0:01:26]} 26... Rd7 {[%clk 0:00:12.2]} 27. Be4 {[%clk 0:01:17.6]} 27... Bd5
{[%clk 0:00:12.4]} 28. Bxd5 {[%clk 0:01:14]} 28... Ncxd5 {[%clk 0:00:11.3]} 29.
Nb8 {[%clk 0:01:13]} 29... Rd8 {[%clk 0:00:10.4]} 30. Nxa6 {[%clk 0:01:12.1]}
30... h6 {[%clk 0:00:08.7]} 31. Nxb5 {[%clk 0:01:10]} 31... Re8 {[%clk 0:00:05]}
32. Nac7 {[%clk 0:01:05.5]} 32... Rxe5 {[%clk 0:00:04.1]} 33. Nxd5 {[%clk
0:01:04.1]} 33... Nxd5 {[%clk 0:00:01.4]} 34. a4 {[%clk 0:01:01.5]} 34... Ne3
{[%clk 0:00:02.3]} 35. b3 {[%clk 0:00:55.7]} 35... Nc2 {[%clk 0:00:01.7]} 36.
Rc3 {[%clk 0:00:51.2]} 36... Re1+ {[%clk 0:00:01.9]} 37. Kg2 {[%clk 0:00:50.6]}
37... Ne3+ {[%clk 0:00:01.3]} 38. Kf2 {[%clk 0:00:49.6]} 1-0

[Event "Betsys MČR v online bleskovém šachu 2021"]
[Site "Chess.com"]
[Date "2021.04.17"]
[Round "11"]
[White "MiroslavBucek"]
[Black "pburak"]
[Result "1-0"]
[WhiteElo "1597"]
[BlackElo "1293"]
[TimeControl "180+1"]
[EndTime "10:49:32 PDT"]
[Termination "Uživatel MiroslavBucek zvítězil na čas"]

1. e4 {[%clk 0:03:00.9]} 1... e5 {[%clk 0:02:59.6]} 2. Nf3 {[%clk 0:02:59.5]}
2... Nc6 {[%clk 0:02:59.1]} 3. Bb5 {[%clk 0:02:58.1]} 3... a6 {[%clk 0:02:58.3]}
4. Ba4 {[%clk 0:02:57.3]} 4... Nf6 {[%clk 0:02:57.1]} 5. O-O {[%clk 0:02:57.4]}
5... Be7 {[%clk 0:02:54.7]} 6. Re1 {[%clk 0:02:57.5]} 6... b5 {[%clk 0:02:53.7]}
7. Bb3 {[%clk 0:02:57.1]} 7... O-O {[%clk 0:02:52.8]} 8. c3 {[%clk 0:02:57.1]}
8... d6 {[%clk 0:02:47.9]} 9. h3 {[%clk 0:02:55.7]} 9... Bd7 {[%clk 0:02:42.4]}
10. d4 {[%clk 0:02:55.7]} 10... exd4 {[%clk 0:02:39.3]} 11. cxd4 {[%clk
0:02:55.7]} 11... Na5 {[%clk 0:02:29.9]} 12. Bc2 {[%clk 0:02:55.1]} 12... c5
{[%clk 0:02:29]} 13. Nbd2 {[%clk 0:02:40.2]} 13... Bc6 {[%clk 0:02:16.9]} 14.
Nf1 {[%clk 0:02:36.8]} 14... Nc4 {[%clk 0:02:00.5]} 15. b3 {[%clk 0:02:28.6]}
15... Nb6 {[%clk 0:01:57.6]} 16. Ng3 {[%clk 0:02:23.8]} 16... Re8 {[%clk
0:01:44.1]} 17. Nf5 {[%clk 0:02:19.7]} 17... Nbd7 {[%clk 0:01:31.5]} 18. Bg5
{[%clk 0:02:06.6]} 18... h6 {[%clk 0:01:29.7]} 19. Bh4 {[%clk 0:02:04.5]} 19...
cxd4 {[%clk 0:01:28.9]} 20. N3xd4 {[%clk 0:02:03.6]} 20... Bb7 {[%clk
0:01:22.8]} 21. b4 {[%clk 0:01:51.1]} 21... Ne5 {[%clk 0:01:21.8]} 22. Nxe7+
{[%clk 0:01:45.2]} 22... Qxe7 {[%clk 0:01:17.9]} 23. Nf5 {[%clk 0:01:45.2]}
23... Qc7 {[%clk 0:01:11.2]} 24. Bxf6 {[%clk 0:01:40.4]} 24... gxf6 {[%clk
0:01:08.6]} 25. Nxh6+ {[%clk 0:01:38.1]} 25... Kg7 {[%clk 0:01:00.9]} 26. Nf5+
{[%clk 0:01:37.9]} 26... Kg6 {[%clk 0:00:53.1]} 27. Qxd6 {[%clk 0:01:30.6]}
27... Qxc2 {[%clk 0:00:48.5]} 28. Nh4+ {[%clk 0:01:17.8]} 28... Kg7 {[%clk
0:00:41.3]} 29. Nf5+ {[%clk 0:01:12.3]} 29... Kg6 {[%clk 0:00:40.5]} 30. Rac1
{[%clk 0:01:11.8]} 30... Qd3 {[%clk 0:00:33]} 31. Qb6 {[%clk 0:01:04.2]} 31...
Rab8 {[%clk 0:00:23.6]} 32. Rcd1 {[%clk 0:00:50.3]} 32... Qc3 {[%clk 0:00:16.1]}
33. Nd6 {[%clk 0:00:45.7]} 33... Red8 {[%clk 0:00:10.8]} 34. Nxb7 {[%clk
0:00:42.9]} 34... Rxd1 {[%clk 0:00:07]} 35. Rxd1 {[%clk 0:00:43]} 35... Qxb4
{[%clk 0:00:01.3]} 36. Qxa6 {[%clk 0:00:39.7]} 1-0

[Event "Betsys MČR v online bleskovém šachu 2021"]
[Site "Chess.com"]
[Date "2021.04.17"]
[Round "11"]
[White "Vesselovsky52"]
[Black "penguinorodriguez"]
[Result "0-1"]
[WhiteElo "2326"]
[BlackElo "2549"]
[TimeControl "180+1"]
[EndTime "10:49:33 PDT"]
[Termination "Uživatel penguinorodriguez zvítězil na čas"]

1. e4 {[%clk 0:02:55.9]} 1... e6 {[%clk 0:02:59.4]} 2. d4 {[%clk 0:02:53.2]}
2... d5 {[%clk 0:02:59.9]} 3. Nc3 {[%clk 0:02:52.7]} 3... Nf6 {[%clk 0:02:59.7]}
4. Bg5 {[%clk 0:02:50]} 4... dxe4 {[%clk 0:02:59.6]} 5. Nxe4 {[%clk 0:02:48.7]}
5... Be7 {[%clk 0:02:59.9]} 6. Bxf6 {[%clk 0:02:46.2]} 6... gxf6 {[%clk
0:03:00.6]} 7. Nf3 {[%clk 0:02:42.1]} 7... f5 {[%clk 0:03:00.7]} 8. Nc3 {[%clk
0:02:37.8]} 8... a6 {[%clk 0:03:00.6]} 9. g3 {[%clk 0:02:36.3]} 9... b5 {[%clk
0:03:00.3]} 10. Bg2 {[%clk 0:02:34.6]} 10... Bb7 {[%clk 0:03:00.7]} 11. O-O
{[%clk 0:02:34.1]} 11... c5 {[%clk 0:03:01]} 12. d5 {[%clk 0:02:31]} 12... b4
{[%clk 0:03:00.7]} 13. dxe6 {[%clk 0:02:25.4]} 13... bxc3 {[%clk 0:03:00.9]} 14.
exf7+ {[%clk 0:02:24.4]} 14... Kf8 {[%clk 0:02:59]} 15. Qc1 {[%clk 0:02:14.3]}
15... Bf6 {[%clk 0:02:39.6]} 16. Re1 {[%clk 0:02:00.4]} 16... Be4 {[%clk
0:02:01.5]} 17. bxc3 {[%clk 0:01:45.7]} 17... Kxf7 {[%clk 0:01:55.8]} 18. Rxe4
{[%clk 0:01:40.3]} 18... fxe4 {[%clk 0:01:51.9]} 19. Nh4 {[%clk 0:01:25.8]}
19... Bxh4 {[%clk 0:01:45.5]} 20. Bxe4 {[%clk 0:01:24.2]} 20... Ra7 {[%clk
0:01:43.1]} 21. gxh4 {[%clk 0:01:02.1]} 21... Qxh4 {[%clk 0:01:41.8]} 22. Bd5+
{[%clk 0:00:58.9]} 22... Kg7 {[%clk 0:01:33.6]} 23. Qe3 {[%clk 0:00:43.8]} 23...
Re7 {[%clk 0:01:13.8]} 24. Qxc5 {[%clk 0:00:36.7]} 24... Nd7 {[%clk 0:00:41.5]}
25. Qd6 {[%clk 0:00:18.3]} 25... Qf6 {[%clk 0:00:38.3]} 26. Qb4 {[%clk
0:00:11.3]} 26... Qg5+ {[%clk 0:00:37.3]} 27. Kf1 {[%clk 0:00:08.3]} 27... Rf8
{[%clk 0:00:31.3]} 28. Qd4+ {[%clk 0:00:04.3]} 28... Qf6 {[%clk 0:00:27.2]} 29.
Rb1 {[%clk 0:00:03]} 29... Qxd4 {[%clk 0:00:26.6]} 30. cxd4 {[%clk 0:00:03]}
30... Nf6 {[%clk 0:00:27.3]} 0-1

[Event "Betsys MČR v online bleskovém šachu 2021"]
[Site "Chess.com"]
[Date "2021.04.17"]
[Round "11"]
[White "czlolcz"]
[Black "Clockwork7orange"]
[Result "0-1"]
[WhiteElo "2189"]
[BlackElo "2327"]
[TimeControl "180+1"]
[EndTime "10:49:34 PDT"]
[Termination "Uživatel Clockwork7orange zvítězil po vzdání soupeře"]

1. d4 {[%clk 0:02:55.5]} 1... g6 {[%clk 0:02:58.9]} 2. c4 {[%clk 0:02:52.8]}
2... Bg7 {[%clk 0:02:58.5]} 3. Nc3 {[%clk 0:02:52.6]} 3... d6 {[%clk 0:02:59]}
4. e4 {[%clk 0:02:52.2]} 4... e5 {[%clk 0:02:59.2]} 5. dxe5 {[%clk 0:02:49.1]}
5... dxe5 {[%clk 0:03:00.1]} 6. Be3 {[%clk 0:02:38.7]} 6... Qxd1+ {[%clk
0:02:57.5]} 7. Rxd1 {[%clk 0:02:37.6]} 7... c6 {[%clk 0:02:57.9]} 8. f3 {[%clk
0:02:35.9]} 8... Na6 {[%clk 0:02:51.9]} 9. a3 {[%clk 0:02:33.3]} 9... Nc7 {[%clk
0:02:50.2]} 10. Bd3 {[%clk 0:02:26.5]} 10... Ne6 {[%clk 0:02:44.5]} 11. Nge2
{[%clk 0:02:25.6]} 11... Bh6 {[%clk 0:02:43.8]} 12. Bf2 {[%clk 0:02:20.5]} 12...
a5 {[%clk 0:02:41.8]} 13. O-O {[%clk 0:02:19.7]} 13... Nf6 {[%clk 0:02:32.8]}
14. Bc2 {[%clk 0:02:13.4]} 14... Nd7 {[%clk 0:02:21.2]} 15. Na4 {[%clk
0:01:44.6]} 15... Bf8 {[%clk 0:02:15.2]} 16. Be3 {[%clk 0:01:27.3]} 16... Nec5
{[%clk 0:01:45.4]} 17. Nxc5 {[%clk 0:01:25.8]} 17... Bxc5 {[%clk 0:01:44.4]} 18.
Kf2 {[%clk 0:01:23.9]} 18... Bxe3+ {[%clk 0:01:21.2]} 19. Kxe3 {[%clk
0:01:22.6]} 19... Nc5 {[%clk 0:01:22.1]} 20. Nc3 {[%clk 0:01:14.9]} 20... g5
{[%clk 0:01:17.6]} 21. Na4 {[%clk 0:01:11.8]} 21... Ne6 {[%clk 0:01:13.4]} 22.
g3 {[%clk 0:00:47.9]} 22... Ke7 {[%clk 0:01:12.2]} 23. Bb1 {[%clk 0:00:33.4]}
23... h5 {[%clk 0:01:07.5]} 24. Rf2 {[%clk 0:00:28.2]} 24... h4 {[%clk 0:01:07]}
25. Nc3 {[%clk 0:00:16.3]} 25... hxg3 {[%clk 0:01:01.8]} 26. hxg3 {[%clk
0:00:17.2]} 26... Rh3 {[%clk 0:01:02.1]} 27. Rg1 {[%clk 0:00:17]} 27... Bd7
{[%clk 0:00:58.1]} 28. Ne2 {[%clk 0:00:16.6]} 28... Rc8 {[%clk 0:00:49.7]} 29.
Rd1 {[%clk 0:00:15.9]} 29... b5 {[%clk 0:00:49.1]} 30. b3 {[%clk 0:00:14.5]}
30... bxc4 {[%clk 0:00:48.7]} 31. bxc4 {[%clk 0:00:15.4]} 31... Rb8 {[%clk
0:00:49.2]} 32. Bd3 {[%clk 0:00:14.7]} 32... Rb3 {[%clk 0:00:48.3]} 33. Rb1
{[%clk 0:00:14.2]} 33... Rxa3 {[%clk 0:00:47.6]} 34. Kd2 {[%clk 0:00:11]} 34...
Ra2+ {[%clk 0:00:40.2]} 35. Kc3 {[%clk 0:00:09.6]} 35... Ra3+ {[%clk 0:00:40]}
36. Kd2 {[%clk 0:00:09]} 36... Nc5 {[%clk 0:00:39.5]} 37. Kc2 {[%clk 0:00:08.7]}
0-1

[Event "Betsys MČR v online bleskovém šachu 2021"]
[Site "Chess.com"]
[Date "2021.04.17"]
[Round "11"]
[White "Alesbar"]
[Black "PavelNo"]
[Result "0-1"]
[WhiteElo "1613"]
[BlackElo "1956"]
[TimeControl "180+1"]
[EndTime "10:49:35 PDT"]
[Termination "Uživatel PavelNo zvítězil na čas"]

1. Nf3 {[%clk 0:02:59.9]} 1... Nf6 {[%clk 0:02:55.6]} 2. g3 {[%clk 0:02:59.8]}
2... g6 {[%clk 0:02:55.8]} 3. Bg2 {[%clk 0:02:59.8]} 3... Bg7 {[%clk 0:02:56.4]}
4. O-O {[%clk 0:02:59.7]} 4... O-O {[%clk 0:02:57]} 5. c4 {[%clk 0:02:59.6]}
5... d6 {[%clk 0:02:57]} 6. d4 {[%clk 0:02:59.1]} 6... c6 {[%clk 0:02:57.5]} 7.
Nc3 {[%clk 0:02:58.9]} 7... Qa5 {[%clk 0:02:57.3]} 8. e4 {[%clk 0:02:53.1]} 8...
Qh5 {[%clk 0:02:55.7]} 9. Nd2 {[%clk 0:02:24.9]} 9... Qxd1 {[%clk 0:02:54]} 10.
Rxd1 {[%clk 0:02:24.1]} 10... Nbd7 {[%clk 0:02:51.6]} 11. Nf3 {[%clk 0:02:20]}
11... e5 {[%clk 0:02:47.6]} 12. d5 {[%clk 0:02:19]} 12... c5 {[%clk 0:02:40.7]}
13. h3 {[%clk 0:02:15.7]} 13... a6 {[%clk 0:02:40]} 14. Be3 {[%clk 0:02:13.5]}
14... Nh5 {[%clk 0:02:34.5]} 15. a3 {[%clk 0:01:56.8]} 15... f5 {[%clk
0:02:31.7]} 16. exf5 {[%clk 0:01:56.1]} 16... gxf5 {[%clk 0:02:30.7]} 17. Nh4
{[%clk 0:01:45.3]} 17... f4 {[%clk 0:02:27.6]} 18. gxf4 {[%clk 0:01:35.5]} 18...
Nxf4 {[%clk 0:02:27.2]} 19. Kh2 {[%clk 0:01:14]} 19... Nb6 {[%clk 0:02:18]} 20.
b3 {[%clk 0:01:09]} 20... Kh8 {[%clk 0:01:57.9]} 21. Ne4 {[%clk 0:01:06.6]}
21... Rd8 {[%clk 0:01:48.5]} 22. Rac1 {[%clk 0:00:57.6]} 22... Bh6 {[%clk
0:01:39.2]} 23. Nf3 {[%clk 0:00:43.3]} 23... Rg8 {[%clk 0:01:33.2]} 24. Rg1
{[%clk 0:00:42.8]} 24... Rg6 {[%clk 0:01:20.4]} 25. Rc2 {[%clk 0:00:37]} 25...
Bf5 {[%clk 0:01:19.9]} 26. Nfd2 {[%clk 0:00:27.1]} 26... Rag8 {[%clk 0:01:14.3]}
27. f3 {[%clk 0:00:10.1]} 27... Rxg2+ {[%clk 0:01:08.9]} 28. Rxg2 {[%clk
0:00:09.5]} 28... Rxg2+ {[%clk 0:01:08.1]} 29. Kh1 {[%clk 0:00:09.5]} 29... Rg6
{[%clk 0:01:06]} 30. Bxf4 {[%clk 0:00:07.4]} 30... Bxf4 {[%clk 0:01:04.3]} 31.
Nf1 {[%clk 0:00:07]} 31... Nc8 {[%clk 0:01:02.3]} 32. Rg2 {[%clk 0:00:05.5]}
32... Rxg2 {[%clk 0:01:00]} 33. Kxg2 {[%clk 0:00:05.5]} 33... Bxe4 {[%clk
0:00:57.1]} 34. fxe4 {[%clk 0:00:05.2]} 34... Kg7 {[%clk 0:00:55.5]} 35. Kf3
{[%clk 0:00:05]} 35... Kg6 {[%clk 0:00:53.9]} 36. Kg4 {[%clk 0:00:03.7]} 36...
Ne7 {[%clk 0:00:51.8]} 37. h4 {[%clk 0:00:01.4]} 37... h5+ {[%clk 0:00:50.6]}
38. Kf3 {[%clk 0:00:01.2]} 38... Kf6 {[%clk 0:00:47.9]} 0-1

[Event "Betsys MČR v online bleskovém šachu 2021"]
[Site "Chess.com"]
[Date "2021.04.17"]
[Round "11"]
[White "RousekJan"]
[Black "indebol"]
[Result "1-0"]
[WhiteElo "1813"]
[BlackElo "1554"]
[TimeControl "180+1"]
[EndTime "10:49:35 PDT"]
[Termination "Uživatel RousekJan zvítězil na čas"]

1. d4 {[%clk 0:03:00.9]} 1... c6 {[%clk 0:02:55.5]} 2. g3 {[%clk 0:02:55]} 2...
d5 {[%clk 0:02:55.8]} 3. Nf3 {[%clk 0:02:54.6]} 3... Nf6 {[%clk 0:02:52.8]} 4.
Bg2 {[%clk 0:02:54.1]} 4... e6 {[%clk 0:02:53.3]} 5. O-O {[%clk 0:02:53.3]} 5...
Be7 {[%clk 0:02:53]} 6. c4 {[%clk 0:02:52.6]} 6... O-O {[%clk 0:02:50.7]} 7.
cxd5 {[%clk 0:02:51.2]} 7... exd5 {[%clk 0:02:49.5]} 8. Nc3 {[%clk 0:02:51.2]}
8... Re8 {[%clk 0:02:49.7]} 9. Bg5 {[%clk 0:02:45]} 9... Nbd7 {[%clk 0:02:48.2]}
10. Re1 {[%clk 0:02:30.5]} 10... h6 {[%clk 0:02:45.3]} 11. Bf4 {[%clk
0:02:30.1]} 11... Nf8 {[%clk 0:02:39.2]} 12. e4 {[%clk 0:02:14.2]} 12... dxe4
{[%clk 0:02:32.7]} 13. Nxe4 {[%clk 0:02:15.1]} 13... Bg4 {[%clk 0:02:29]} 14. h3
{[%clk 0:02:01.9]} 14... Bh5 {[%clk 0:02:25]} 15. g4 {[%clk 0:01:58.2]} 15...
Bg6 {[%clk 0:02:14.7]} 16. Nxf6+ {[%clk 0:01:53.7]} 16... Bxf6 {[%clk
0:02:15.6]} 17. Ne5 {[%clk 0:01:51.6]} 17... Qb6 {[%clk 0:02:07.6]} 18. Nxg6
{[%clk 0:01:31.8]} 18... Nxg6 {[%clk 0:02:06.2]} 19. Be3 {[%clk 0:01:31.4]}
19... Rad8 {[%clk 0:01:55]} 20. d5 {[%clk 0:01:23.3]} 20... Qc7 {[%clk
0:01:41.6]} 21. Qb3 {[%clk 0:01:16.9]} 21... cxd5 {[%clk 0:01:26.7]} 22. Bxd5
{[%clk 0:01:17.8]} 22... b6 {[%clk 0:01:18.6]} 23. Rac1 {[%clk 0:01:12.9]} 23...
Qd7 {[%clk 0:00:57]} 24. Bc6 {[%clk 0:01:08.7]} 24... Qd3 {[%clk 0:00:44.8]} 25.
Qxd3 {[%clk 0:01:05.9]} 25... Rxd3 {[%clk 0:00:43.9]} 26. Bxe8 {[%clk
0:01:05.8]} 26... Ne5 {[%clk 0:00:39.3]} 27. Kg2 {[%clk 0:00:54.9]} 27... Kh7
{[%clk 0:00:28.7]} 28. Bb5 {[%clk 0:00:53]} 28... Rd8 {[%clk 0:00:20.1]} 29.
Rcd1 {[%clk 0:00:47.2]} 29... Rc8 {[%clk 0:00:19.4]} 30. Bd4 {[%clk 0:00:47]}
30... Nxg4 {[%clk 0:00:10.1]} 31. hxg4 {[%clk 0:00:39.8]} 31... Bxd4 {[%clk
0:00:10.5]} 32. Rxd4 {[%clk 0:00:40.3]} 32... Rc2 {[%clk 0:00:10.6]} 33. Bd3+
{[%clk 0:00:38.9]} 1-0

[Event "Betsys MČR v online bleskovém šachu 2021"]
[Site "Chess.com"]
[Date "2021.04.17"]
[Round "11"]
[White "misacz"]
[Black "kubajss"]
[Result "1/2-1/2"]
[WhiteElo "1075"]
[BlackElo "913"]
[TimeControl "180+1"]
[EndTime "10:49:35 PDT"]
[Termination "Remíza opakováním pozice"]

1. d4 {[%clk 0:03:00.1]} 1... d5 {[%clk 0:02:59.8]} 2. Nf3 {[%clk 0:02:58.4]}
2... Nc6 {[%clk 0:02:58.5]} 3. Bf4 {[%clk 0:02:55.5]} 3... Bf5 {[%clk
0:02:56.4]} 4. e3 {[%clk 0:02:53.8]} 4... Nf6 {[%clk 0:02:55.7]} 5. Bd3 {[%clk
0:02:53]} 5... Bg6 {[%clk 0:02:54.7]} 6. Bxg6 {[%clk 0:02:52.8]} 6... hxg6
{[%clk 0:02:54.5]} 7. Nbd2 {[%clk 0:02:53.2]} 7... e6 {[%clk 0:02:52.8]} 8. Qe2
{[%clk 0:02:53.5]} 8... Qd7 {[%clk 0:02:42.5]} 9. e4 {[%clk 0:02:52.9]} 9...
dxe4 {[%clk 0:02:22.5]} 10. Nxe4 {[%clk 0:02:52.9]} 10... Nxe4 {[%clk 0:02:14]}
11. Qxe4 {[%clk 0:02:53.8]} 11... O-O-O {[%clk 0:02:06.4]} 12. a4 {[%clk
0:02:50.4]} 12... Nxd4 {[%clk 0:02:00.6]} 13. Nxd4 {[%clk 0:02:49.7]} 13... Qxd4
{[%clk 0:01:58.9]} 14. Qf3 {[%clk 0:02:42.7]} 14... Qb4+ {[%clk 0:01:47.8]} 15.
c3 {[%clk 0:02:41.7]} 15... Qxb2 {[%clk 0:01:17.9]} 16. O-O {[%clk 0:02:29.6]}
16... Bc5 {[%clk 0:01:06]} 17. Rab1 {[%clk 0:02:27.5]} 17... Qa2 {[%clk
0:01:00.1]} 18. Qxb7+ {[%clk 0:02:25.8]} 18... Kd7 {[%clk 0:00:56.2]} 19. Rbd1+
{[%clk 0:02:26]} 19... Ke7 {[%clk 0:00:54.9]} 20. Qxc7+ {[%clk 0:02:25.1]} 20...
Kf6 {[%clk 0:00:52.7]} 21. Be5+ {[%clk 0:02:09.9]} 21... Kf5 {[%clk 0:00:44]}
22. Rxd8 {[%clk 0:02:04.7]} 22... Rxd8 {[%clk 0:00:23.1]} 23. Qxd8 {[%clk
0:02:04.5]} 23... Kxe5 {[%clk 0:00:10.9]} 24. Re1+ {[%clk 0:02:03]} 24... Kf5
{[%clk 0:00:07.2]} 25. Qd3+ {[%clk 0:01:56.6]} 25... Kf6 {[%clk 0:00:06.5]} 26.
Qf3+ {[%clk 0:01:47.4]} 26... Ke7 {[%clk 0:00:05.3]} 27. h3 {[%clk 0:01:43.4]}
27... Kf8 {[%clk 0:00:02.8]} 28. Qb7 {[%clk 0:01:39.2]} 28... Qxf2+ {[%clk
0:00:02]} 29. Kh2 {[%clk 0:01:36.4]} 29... Qxe1 {[%clk 0:00:02.5]} 30. Qc8+
{[%clk 0:01:34.6]} 30... Ke7 {[%clk 0:00:01.7]} 31. Qxc5+ {[%clk 0:01:34.4]}
31... Kf6 {[%clk 0:00:02]} 32. Qd4+ {[%clk 0:01:19.7]} 32... Qe5+ {[%clk
0:00:01.6]} 33. Qxe5+ {[%clk 0:01:19.2]} 33... Kxe5 {[%clk 0:00:02.5]} 34. Kg3
{[%clk 0:01:13.4]} 34... Kd5 {[%clk 0:00:02.9]} 35. Kf4 {[%clk 0:01:13.6]} 35...
Kc4 {[%clk 0:00:03.3]} 36. Ke5 {[%clk 0:01:13.9]} 36... Kxc3 {[%clk 0:00:03.2]}
37. Kd6 {[%clk 0:01:13.5]} 37... Kb4 {[%clk 0:00:03.5]} 38. Ke7 {[%clk
0:01:13.6]} 38... e5 {[%clk 0:00:02.7]} 39. Kxf7 {[%clk 0:01:13.8]} 39... e4
{[%clk 0:00:03.2]} 40. Kxg7 {[%clk 0:01:13.6]} 40... e3 {[%clk 0:00:03.7]} 41.
Kxg6 {[%clk 0:01:13.7]} 41... e2 {[%clk 0:00:04.3]} 42. h4 {[%clk 0:01:14.6]}
42... e1=Q {[%clk 0:00:04.7]} 43. h5 {[%clk 0:01:15.5]} 43... Qe6+ {[%clk
0:00:05]} 44. Kg5 {[%clk 0:01:15.4]} 44... Kc4 {[%clk 0:00:05.7]} 45. h6 {[%clk
0:01:15.4]} 45... Kd4 {[%clk 0:00:06.2]} 46. h7 {[%clk 0:01:15.3]} 46... Qe7+
{[%clk 0:00:05.6]} 47. Kg6 {[%clk 0:01:14.9]} 47... Qe8+ {[%clk 0:00:05.4]} 48.
Kg7 {[%clk 0:01:14.8]} 48... Qe7+ {[%clk 0:00:05.4]} 49. Kg8 {[%clk 0:01:14.6]}
49... Qe8+ {[%clk 0:00:05.9]} 50. Kg7 {[%clk 0:01:14.6]} 50... Qe7+ {[%clk
0:00:06.4]} 51. Kh8 {[%clk 0:01:14.3]} 51... Qe8+ {[%clk 0:00:06.8]} 52. Kg7
{[%clk 0:01:14.8]} 1/2-1/2

[Event "Betsys MČR v online bleskovém šachu 2021"]
[Site "Chess.com"]
[Date "2021.04.17"]
[Round "11"]
[White "machonza"]
[Black "xPsylocke"]
[Result "0-1"]
[WhiteElo "2022"]
[BlackElo "2240"]
[TimeControl "180+1"]
[EndTime "10:49:36 PDT"]
[Termination "Uživatel xPsylocke zvítězil matem"]

1. e4 {[%clk 0:03:00.9]} 1... e5 {[%clk 0:02:59.1]} 2. Nf3 {[%clk 0:02:58.2]}
2... Nc6 {[%clk 0:02:59.2]} 3. Bb5 {[%clk 0:02:57.5]} 3... a6 {[%clk 0:02:58.8]}
4. Bxc6 {[%clk 0:02:57.3]} 4... dxc6 {[%clk 0:02:57.9]} 5. Qe2 {[%clk
0:02:57.8]} 5... f6 {[%clk 0:02:56.2]} 6. Na3 {[%clk 0:02:52.8]} 6... Ne7 {[%clk
0:02:54.8]} 7. c3 {[%clk 0:02:52]} 7... Ng6 {[%clk 0:02:52]} 8. d4 {[%clk
0:02:50.6]} 8... exd4 {[%clk 0:02:50.4]} 9. cxd4 {[%clk 0:02:49.7]} 9... Bb4+
{[%clk 0:02:38]} 10. Kf1 {[%clk 0:02:48.3]} 10... Be6 {[%clk 0:02:26.4]} 11. Nc2
{[%clk 0:02:44.7]} 11... Be7 {[%clk 0:02:25.1]} 12. h3 {[%clk 0:02:34.7]} 12...
O-O {[%clk 0:02:24.8]} 13. g3 {[%clk 0:02:29.6]} 13... f5 {[%clk 0:02:09.5]} 14.
e5 {[%clk 0:02:26.5]} 14... f4 {[%clk 0:01:54.9]} 15. g4 {[%clk 0:02:09.7]}
15... b5 {[%clk 0:01:54.6]} 16. b3 {[%clk 0:02:08.3]} 16... c5 {[%clk
0:01:47.4]} 17. Bb2 {[%clk 0:01:57.4]} 17... c4 {[%clk 0:01:46.1]} 18. Nd2
{[%clk 0:01:52.2]} 18... f3 {[%clk 0:01:32.1]} 19. Qe1 {[%clk 0:01:35.1]} 19...
Nf4 {[%clk 0:01:17.2]} 20. Ne3 {[%clk 0:01:23.6]} 20... Nd3 {[%clk 0:01:15.2]}
21. Qb1 {[%clk 0:01:21.1]} 21... Bb4 {[%clk 0:01:03.5]} 22. Ne4 {[%clk 0:01:14]}
22... Qh4 {[%clk 0:00:58.1]} 23. Ng3 {[%clk 0:00:57.8]} 23... Bd2 {[%clk
0:00:51.3]} 24. Nd1 {[%clk 0:00:50]} 24... Bf4 {[%clk 0:00:40.7]} 25. Ba3 {[%clk
0:00:30.7]} 25... Rf7 {[%clk 0:00:33.7]} 26. Qc2 {[%clk 0:00:28.5]} 26... Bxg3
{[%clk 0:00:32]} 27. fxg3 {[%clk 0:00:27.2]} 27... Qxg3 {[%clk 0:00:32.9]} 28.
Ne3 {[%clk 0:00:20.3]} 28... f2 {[%clk 0:00:30.1]} 29. Rd1 {[%clk 0:00:14.4]}
29... Qf3 {[%clk 0:00:21]} 30. Rxd3 {[%clk 0:00:13.4]} 30... cxd3 {[%clk
0:00:19.8]} 31. Qxd3 {[%clk 0:00:11.9]} 31... Qxh1+ {[%clk 0:00:19.3]} 32. Ke2
{[%clk 0:00:10.8]} 32... Qe1# {[%clk 0:00:19.3]} 0-1